bitfinex/quotes_SOLUSD_20240705
["timestamp","ask_amount","ask_price","bid_price","bid_amount"]
[1720144871301,107.7694,128.71,128.68,0.8286809]
[1720144871487,7.7689,128.72,128.68,0.8286809]
[1720144871682,107.7682,128.73,128.68,0.8286809]
[1720144872204,7.7688,128.72,128.68,0.8286809]
[1720144872394,107.7671,128.75,128.68,0.8286809]
[1720144873087,7.7677,128.74,128.68,0.8286809]
[1720144873607,100.0,128.73,128.68,0.8286809]
[1720144873779,7.7677,128.74,128.68,0.8286809]
[1720144874192,107.7689,128.72,128.68,0.8286809]
[1720144874506,107.7677,128.74,128.68,0.8286809]
[1720144875994,100.0,128.74,128.68,0.8286809]
[1720144876204,7.7682,128.73,128.68,0.8286809]
[1720144876374,107.7689,128.72,128.68,0.8286809]
[1720144877998,107.7688,128.72,128.68,0.8286809]
[1720144878304,100.0,128.72,128.68,0.8286809]
[1720144878694,100.0,128.7,128.68,0.8286809]
[1720144879485,107.7701,128.7,128.68,0.8286809]
[1720144879803,7.7706,128.69,128.68,0.8286809]
[1720144880010,107.7706,128.69,128.68,0.8286809]
[1720144880207,160.72625762,128.69,128.68,0.8286809]
[1720144882026,196.77806596,128.69,128.68,8.09e-05]
[1720144882324,196.77806596,128.69,128.61,0.1]
[1720144882325,100.0,128.62,128.61,0.1]
[1720144883310,107.7748,128.62,128.61,0.1]
[1720144886503,152.7748,128.62,128.61,0.1]
[1720144886906,160.88895437,128.62,128.61,0.1]
[1720144888130,15.88895437,128.62,128.61,0.1]
[1720144888295,8.11415437,128.62,128.61,0.1]
[1720144888490,100.0,128.66,128.61,0.1]
[1720144888690,115.88011677,128.66,128.61,0.1]
[1720144888894,7.773,128.65,128.61,0.1]
[1720144889089,107.7737,128.64,128.61,0.1]
[1720144889522,100.0,128.64,128.61,0.1]
[1720144889822,107.7737,128.64,128.61,0.1]
[1720144890132,107.7748,128.62,128.61,0.1]
[1720144891097,207.7748,128.62,128.61,0.1]
[1720144891299,252.7748,128.62,128.61,0.1]
[1720144891592,152.7748,128.62,128.61,0.1]
[1720144892212,252.7748,128.62,128.61,0.1]
[1720144892517,260.88215398,128.62,128.61,0.1]
[1720144892703,160.88215398,128.62,128.61,0.1]
[1720144892906,115.88215398,128.62,128.61,0.1]
[1720144893893,7.7743,128.63,128.61,0.1]
[1720144894304,100.0,128.66,128.61,0.1]
[1720144894506,107.7725,128.66,128.61,0.1]
[1720144894918,7.773,128.65,128.61,0.1]
[1720144895426,7.7737,128.64,128.61,0.1]
[1720144896020,107.7742,128.63,128.61,0.1]
[1720144896219,7.7737,128.64,128.61,0.1]
[1720144896423,107.7731,128.65,128.61,0.1]
[1720144896723,7.7737,128.64,128.61,0.1]
[1720144897104,100.0,128.63,128.61,0.1]
[1720144897644,7.7748,128.62,128.61,0.1]
[1720144898339,8.09337928,128.66,128.61,0.1]
[1720144898499,100.0,128.67,128.61,0.1]
[1720144898698,7.7725,128.66,128.61,0.1]
[1720144898917,7.773,128.65,128.61,0.1]
[1720144899114,107.773,128.65,128.61,0.1]
[1720144899331,7.7738,128.64,128.61,0.1]
[1720144900141,100.0,128.67,128.62,16.5111]
[1720144900304,107.7723,128.67,128.62,16.5111]
[1720144900628,7.7725,128.66,128.62,16.5111]
[1720144902026,0.77712155,128.63,128.62,16.5111]
[1720144907064,0.77712155,128.63,128.61,0.1]
[1720144911748,100.77712155,128.63,128.61,0.1]
[1720144911950,108.55152155,128.63,128.61,0.1]
[1720144912244,7.7748,128.62,128.61,0.1]
[1720144913084,52.7748,128.62,128.61,0.1]
[1720144913768,152.7748,128.62,128.61,0.1]
[1720144914660,52.7748,128.62,128.61,0.1]
[1720144916260,152.7748,128.62,128.61,0.1]
[1720144917960,52.7748,128.62,128.61,0.1]
[1720144918172,152.7748,128.62,128.61,0.1]
[1720144918873,152.7748,128.62,128.61,0.0001]
[1720144918874,154.49232953,128.62,128.61,0.0001]
[1720144919080,107.7784,128.56,128.55,0.8286809]
[1720144920575,100.0,128.56,128.55,0.8286809]
[1720144920750,107.7755,128.61,128.55,0.8286809]
[1720144921079,0.77712155,128.63,128.56,30.5206]
[1720144921257,0.77712155,128.63,128.57,7.7777]
[1720144921459,0.77712155,128.63,128.56,22.7423]
[1720144921665,100.0,128.69,128.57,6.1365]
[1720144921855,100.0,128.72,128.65,13.9094]
[1720144922057,0.77730276,128.66,128.65,6.1365]
[1720144922752,7.7692,128.72,128.65,6.1365]
[1720144922952,19.4183,128.75,128.65,6.1365]
[1720144922953,100.0,128.75,128.65,6.1365]
[1720144923159,7.7658,128.77,128.68,7.7709]
[1720144923655,107.7652,128.78,128.68,7.7709]
[1720144924056,7.7659,128.77,128.68,7.7709]
[1720144924677,100.0,128.79,128.69,7.7704]
[1720144925262,100.0,128.77,128.67,7.7713]
[1720144925451,100.0,128.79,128.68,7.7712]
[1720144925778,107.7668,128.76,128.67,46.75]
[1720144925955,100.0,128.76,128.67,46.75]
[1720144926154,7.7683,128.73,128.65,6.1365]
[1720144926781,100.0,128.74,128.65,6.1365]
[1720144927075,100.0,128.72,128.65,6.1365]
[1720144927381,100.0,128.74,128.65,6.1365]
[1720144927705,100.0,128.76,128.65,72.3181]
[1720144927974,107.7664,128.76,128.67,7.7716]
[1720144928153,107.7664,128.76,128.65,72.3181]
[1720144928351,107.7681,128.74,128.65,80.091]
[1720144928774,100.0,128.74,128.66,7.7722]
[1720144928975,7.7664,128.76,128.67,7.7716]
[1720144929483,7.7664,128.76,128.68,7.7712]
[1720144930561,107.7664,128.76,128.67,7.7718]
[1720144930782,7.7671,128.75,128.67,7.7718]
[1720144930979,100.0,128.72,128.65,6.1365]
[1720144931196,100.0,128.76,128.65,6.1365]
[1720144931197,7.7707,128.69,128.65,6.1365]
[1720144931494,7.7701,128.7,128.65,6.1365]
[1720144931701,107.7693,128.72,128.65,6.1365]
[1720144932006,7.7696,128.71,128.65,6.1365]
[1720144932805,100.0,128.7,128.65,6.1365]
[1720144933574,7.7694,128.71,128.65,6.1365]
[1720144936210,100.0,128.68,128.64,16.6058]
[1720144936399,100.0,128.66,128.62,6.4692]
[1720144936613,7.7731,128.65,128.62,6.4692]
[1720144937108,100.0,128.66,128.6,15.8877]
[1720144937317,107.7737,128.64,128.6,15.8877]
[1720144938282,107.7724,128.66,128.6,15.8877]
[1720144938477,7.775,128.62,128.58,6.2339]
[1720144938681,107.7743,128.63,128.58,6.2339]
[1720144938879,100.0,128.65,128.58,6.2339]
[1720144939083,7.7737,128.64,128.58,6.2339]
[1720144939283,7.7736,128.64,128.58,6.2339]
[1720144940118,100.0,128.63,128.58,6.2339]
[1720144940585,100.0,128.63,128.56,15.8899]
[1720144942011,0.77784692,128.57,128.56,15.8899]
[1720144942524,100.0,128.65,128.56,15.8899]
[1720144942727,107.7731,128.65,128.56,23.6681]
[1720144942901,7.7738,128.64,128.56,23.6681]
[1720144943580,107.7732,128.65,128.56,23.6681]
[1720144943880,7.7737,128.64,128.56,15.8899]
[1720144944086,107.7744,128.63,128.56,15.8899]
[1720144944518,7.7737,128.64,128.56,15.8899]
[1720144945094,7.7737,128.64,128.56,23.6682]
[1720144946627,107.7746,128.63,128.56,15.8899]
[1720144946813,7.7742,128.64,128.56,15.8899]
[1720144947134,7.7732,128.65,128.56,23.6682]
[1720144947319,7.7732,128.65,128.57,7.7778]
[1720144948130,7.7737,128.64,128.56,23.6682]
[1720144948835,8.083013,128.67,128.58,62.8885]
[1720144949037,7.7692,128.72,128.63,7.7741]
[1720144949204,7.7699,128.71,128.61,66.1879]
[1720144949532,7.77,128.7,128.61,66.1879]
[1720144949721,7.77,128.7,128.61,73.9631]
[1720144950024,7.7706,128.69,128.61,19.4379]
[1720144950209,7.7706,128.69,128.62,0.45599177]
[1720144950409,7.7704,128.7,128.61,73.963]
[1720144950608,100.0,128.71,128.62,6.2035]
[1720144951014,7.7704,128.7,128.62,6.2035]
[1720144951214,7.7708,128.69,128.62,6.2035]
[1720144951411,7.7701,128.7,128.62,6.2035]
[1720144951944,7.7709,128.69,128.62,6.2035]
[1720144952228,7.7701,128.7,128.62,6.2035]
[1720144952610,7.7694,128.71,128.62,6.2035]
[1720144952803,7.7689,128.72,128.64,7.7735]
[1720144953008,7.7689,128.72,128.63,19.4349]
[1720144953009,8.08037278,128.73,128.65,34.6559]
[1720144953334,100.0,128.75,128.65,34.6559]
[1720144953335,100.0,128.75,128.65,42.4287]
[1720144953501,7.7677,128.74,128.66,7.7722]
[1720144953700,100.0,128.75,128.65,34.6559]
[1720144954716,7.7682,128.73,128.66,6.1576]
[1720144954917,7.7677,128.74,128.66,6.1576]
[1720144955131,100.0,128.75,128.66,6.1576]
[1720144955427,7.7677,128.74,128.66,6.1576]
[1720144955613,100.0,128.79,128.66,72.3372]
[1720144955814,7.7656,128.78,128.69,7.7704]
[1720144956532,7.7665,128.76,128.68,19.4274]
[1720144956707,7.7665,128.76,128.68,27.1984]
[1720144957104,7.7671,128.75,128.67,46.75]
[1720144957409,107.7671,128.75,128.66,13.9298]
[1720144957630,7.7664,128.76,128.67,7.7717]
[1720144958147,7.7698,128.71,128.66,6.1576]
[1720144958342,7.7701,128.7,128.66,6.1576]
[1720144958511,7.7708,128.69,128.66,6.1576]
[1720144958927,7.7702,128.7,128.66,6.1576]
[1720144959122,7.7696,128.71,128.66,6.1576]
[1720144959810,107.7701,128.7,128.66,6.1576]
[1720144960611,7.7707,128.69,128.66,6.1576]
[1720144960933,100.0,128.7,128.66,6.1576]
[1720144961632,100.0,128.7,128.65,15.224]
[1720144961846,107.77,128.7,128.65,15.224]
[1720144962008,0.77730276,128.66,128.65,15.224]
[1720144963922,0.77730276,128.66,128.64,6.029]
[1720144964744,0.77730276,128.66,128.61,16.0446]
[1720144964937,0.77730276,128.66,128.61,22.1204]
[1720144966037,7.7732,128.65,128.61,22.1204]
[1720144966429,7.7732,128.65,128.61,6.0758]
[1720144966943,7.7743,128.63,128.58,21.3948]
[1720144967145,100.0,128.64,128.58,21.3948]
[1720144967519,7.7742,128.63,128.58,21.3948]
[1720144967731,108.86202464,128.66,128.58,21.3948]
[1720144968019,116.63442464,128.66,128.58,21.3948]
[1720144968218,100.0,128.64,128.58,21.3948]
[1720144968742,107.7739,128.64,128.58,21.3948]
[1720144969124,107.7736,128.64,128.58,21.3948]
[1720144969323,116.63492464,128.66,128.58,21.3948]
[1720144970025,7.7731,128.65,128.58,21.3948]
[1720144970529,7.7736,128.64,128.58,21.3948]
[1720144970841,7.7731,128.65,128.58,21.3948]
[1720144971038,100.0,128.64,128.58,21.3948]
[1720144971440,107.7737,128.64,128.58,21.3948]
[1720144972442,100.0,128.64,128.58,21.3948]
[1720144972755,7.773,128.65,128.58,21.3948]
[1720144972946,7.7736,128.64,128.58,21.3948]
[1720144973145,7.7731,128.65,128.58,21.3948]
[1720144973321,100.0,128.64,128.58,21.3948]
[1720144973848,107.7736,128.64,128.58,21.3948]
[1720144974052,7.7737,128.64,128.58,21.3948]
[1720144974537,107.7737,128.64,128.58,21.3948]
[1720144975046,7.7744,128.63,128.58,21.3948]
[1720144976239,107.7751,128.62,128.58,21.3948]
[1720144976748,100.0,128.62,128.58,21.3948]
[1720144977848,107.7737,128.64,128.58,21.3948]
[1720144978250,7.7744,128.63,128.58,21.3948]
[1720144978953,107.7749,128.62,128.58,21.3948]
[1720144979254,107.7738,128.64,128.58,21.3948]
[1720144979557,7.7744,128.63,128.58,21.3948]
[1720144980127,107.7738,128.64,128.58,21.3948]
[1720144980346,100.0,128.64,128.58,21.3948]
[1720144980624,7.7766,128.59,128.58,21.3948]
[1720144980939,131.41,128.64,128.58,21.3948]
[1720144981139,107.7749,128.62,128.58,21.3948]
[1720144981825,107.7749,128.62,128.55,23.0099809]
[1720144981826,107.7764,128.6,128.55,23.0099809]
[1720144982026,100.0,128.6,128.55,23.0099809]
[1720144982222,100.0,128.64,128.55,23.0099809]
[1720144982428,0.77730276,128.66,128.55,47.5786809]
[1720144982760,0.77730276,128.66,128.61,27.2131]
[1720144982938,0.77730276,128.66,128.65,7.773]
[1720144983129,131.41,128.75,128.65,19.4316]
[1720144983459,100.0,128.78,128.7,7.7699]
[1720144983624,131.41,128.78,128.68,27.1985]
[1720144983956,107.7666,128.76,128.67,7.7717]
[1720144984169,7.72832429,128.75,128.66,75.8812]
[1720144984544,100.0,128.74,128.66,75.8812]
[1720144984868,7.7697,128.71,128.66,21.3589]
[1720144985077,100.0,128.7,128.66,21.3589]
[1720144985370,7.7682,128.73,128.66,21.3589]
[1720144985579,139.1776,128.74,128.66,21.3589]
[1720144985773,100.0,128.72,128.66,21.3589]
[1720144986074,107.769,128.72,128.66,21.3589]
[1720144986466,7.7695,128.71,128.66,21.3589]
[1720144986888,100.0,128.67,128.59,255.3]
[1720144987044,100.0,128.65,128.58,22.3499]
[1720144987369,107.7742,128.63,128.58,22.3499]
[1720144987572,107.7735,128.65,128.58,22.3499]
[1720144987866,7.7736,128.64,128.58,22.3499]
[1720144988544,100.0,128.67,128.58,30.127]
[1720144988748,100.0,128.67,128.58,22.3499]
[1720144988749,100.0,128.64,128.58,22.3499]
[1720144988942,7.778,128.57,128.55,0.8286809]
[1720144989166,100.0,128.62,128.55,0.8286809]
[1720144989353,100.0,128.64,128.55,0.8286809]
[1720144989676,7.7764,128.6,128.55,0.8286809]
[1720144990181,100.0,128.62,128.55,0.8286809]
[1720144990563,100.0,128.59,128.55,0.8286809]
[1720144990864,107.7755,128.61,128.55,0.8286809]
[1720144991194,135.34,128.66,128.55,8.6075809]
[1720144991195,100.0,128.63,128.55,8.6075809]
[1720144991477,100.0,128.63,128.55,0.8286809]
[1720144991675,107.7743,128.63,128.55,0.8286809]
[1720144992174,7.7748,128.62,128.55,0.8286809]
[1720144992350,7.7755,128.61,128.55,0.8286809]
[1720144992555,100.0,128.62,128.55,0.8286809]
[1720144993283,7.7754,128.61,128.55,0.8286809]
[1720144993664,7.7747,128.63,128.55,0.8286809]
[1720144994179,100.0,128.62,128.55,0.8286809]
[1720144994478,7.7761,128.6,128.55,0.8286809]
[1720144995668,7.7756,128.61,128.55,0.8286809]
[1720144995855,100.0,128.6,128.55,0.8286809]
[1720144996063,7.7779,128.57,128.55,0.8286809]
[1720144996262,107.7784,128.56,128.55,0.8286809]
[1720144996461,100.0,128.58,128.55,0.8286809]
[1720144996676,7.778,128.57,128.55,0.8286809]
[1720144996877,100.0,128.56,128.55,0.8286809]
[1720144997078,107.7784,128.56,128.55,0.8286809]
[1720144998072,252.7784,128.56,128.55,8.09e-05]
[1720144998384,252.7784,128.56,128.51,0.1]
[1720144998385,107.7808,128.52,128.51,0.1]
[1720144998586,143.1208,128.52,128.51,0.0001]
[1720144998887,107.7814,128.51,128.5,25.916594]
[1720144999058,152.7814,128.51,128.5,25.916594]
[1720145000494,52.7814,128.51,128.5,25.916594]
[1720145000697,100.0,128.54,128.5,25.916594]
[1720145001191,100.0,128.52,128.5,25.916594]
[1720145001366,7.7814,128.51,128.5,25.916594]
[1720145001564,100.0,128.54,128.5,25.916594]
[1720145001785,107.7802,128.54,128.5,25.916594]
[1720145001970,7.7802,128.54,128.5,25.916594]
[1720145002286,7.7791,128.55,128.5,25.916594]
[1720145002497,100.0,128.6,128.5,32.355694]
[1720145003002,7.7779,128.57,128.5,32.355694]
[1720145003289,100.0,128.56,128.5,32.355694]
[1720145003493,7.7801,128.54,128.5,32.355694]
[1720145003999,7.7791,128.55,128.5,25.916594]
[1720145004164,107.7785,128.56,128.5,25.916594]
[1720145004365,100.0,128.59,128.5,25.916594]
[1720145004581,100.0,128.57,128.5,25.916594]
[1720145004894,7.7779,128.57,128.5,25.916594]
[1720145005058,15.86799332,128.58,128.5,25.916594]
[1720145005257,107.7779,128.57,128.5,25.916594]
[1720145005473,8.09069332,128.58,128.5,25.916594]
[1720145005693,7.7765,128.6,128.51,7.7814]
[1720145005988,7.7754,128.61,128.52,7.7808]
[1720145006161,100.0,128.62,128.5,45.370994]
[1720145006162,7.7767,128.59,128.5,53.152894]
[1720145006362,7.7773,128.58,128.5,45.370994]
[1720145006772,7.7767,128.59,128.5,45.370994]
[1720145006975,7.7784,128.57,128.5,25.916594]
[1720145007776,107.7784,128.57,128.5,25.916594]
[1720145008518,7.7786,128.56,128.5,25.916594]
[1720145009521,135.34,128.61,128.5,25.916594]
[1720145009812,7.7766,128.59,128.5,33.698594]
[1720145010106,100.0,128.58,128.5,25.916594]
[1720145010473,7.778,128.57,128.5,25.916594]
[1720145010991,7.7784,128.56,128.5,25.916594]
[1720145011181,7.7798,128.54,128.5,25.916594]
[1720145011373,100.0,128.56,128.5,25.916594]
[1720145011573,100.0,128.58,128.5,25.916594]
[1720145011574,7.7804,128.53,128.5,25.916594]
[1720145012100,100.0,128.56,128.5,25.916594]
[1720145012501,7.7792,128.55,128.5,25.916594]
[1720145013876,7.7782,128.57,128.5,25.916594]
[1720145014104,100.0,128.58,128.5,25.916594]
[1720145014801,7.7782,128.57,128.5,25.916594]
[1720145015199,7.7772,128.59,128.5,72.666594]
[1720145015518,15.8633994,128.62,128.53,27.2302]
[1720145015729,7.7756,128.61,128.53,27.2302]
[1720145015876,7.776,128.6,128.53,19.4501]
[1720145016201,7.776,128.6,128.52,53.3517]
[1720145017007,7.776,128.6,128.52,61.1325]
[1720145017198,8.08750508,128.64,128.54,15.7549]
[1720145017387,7.775,128.62,128.54,15.7549]
[1720145017886,7.7743,128.63,128.54,70.2844]
[1720145018085,7.7743,128.63,128.55,0.48157323]
[1720145018283,7.7748,128.62,128.55,0.48157323]
[1720145020283,100.0,128.62,128.55,0.48157323]
[1720145020484,100.0,128.6,128.54,15.7549]
[1720145020703,7.7779,128.57,128.54,15.7549]
[1720145021008,7.7773,128.58,128.54,15.7549]
[1720145021383,7.778,128.57,128.54,15.7549]
[1720145021579,7.7789,128.56,128.54,15.7549]
[1720145021910,7.7775,128.58,128.54,15.7549]
[1720145022215,7.7767,128.59,128.54,15.7549]
[1720145022527,7.776,128.61,128.54,15.7549]
[1720145022877,7.7783,128.57,128.54,15.7549]
[1720145023078,7.7774,128.58,128.54,15.7549]
[1720145023282,100.0,128.62,128.54,15.7549]
[1720145023584,119.435,128.64,128.54,15.7549]
[1720145023809,100.0,128.62,128.54,15.7549]
[1720145023992,7.7765,128.6,128.54,15.7549]
[1720145024196,100.0,128.62,128.54,15.7549]
[1720145024517,7.7767,128.59,128.54,15.7549]
[1720145025087,7.7781,128.57,128.54,15.7549]
[1720145025294,7.7774,128.58,128.54,15.7549]
[1720145026597,119.4375,128.62,128.54,15.7549]
[1720145026809,7.777,128.59,128.54,15.7549]
[1720145027019,7.7773,128.58,128.54,15.7549]
[1720145027201,7.7768,128.59,128.54,15.7549]
[1720145027382,119.4375,128.62,128.54,15.7549]
[1720145027587,7.7761,128.6,128.54,15.7549]
[1720145028210,100.0,128.6,128.54,15.7549]
[1720145028408,7.7778,128.57,128.54,15.7549]
[1720145028605,7.7785,128.56,128.52,6.6017]
[1720145029439,7.7774,128.58,128.52,6.6017]
[1720145029920,7.7779,128.57,128.52,6.6017]
[1720145030617,7.7773,128.58,128.52,6.6017]
[1720145030804,7.7767,128.59,128.52,6.6017]
[1720145031120,7.7775,128.58,128.52,6.6017]
[1720145031317,108.08822694,128.6,128.52,6.6017]
[1720145031505,7.7785,128.56,128.52,6.6017]
[1720145032199,7.778,128.57,128.52,6.6017]
[1720145033794,7.7786,128.56,128.52,6.6017]
[1720145034230,7.7791,128.55,128.52,6.6017]
[1720145035503,100.0,128.58,128.52,6.6017]
[1720145035705,7.778,128.57,128.52,6.6017]
[1720145036196,7.7784,128.56,128.52,6.6017]
[1720145036418,7.779,128.55,128.52,6.6017]
[1720145037048,7.781,128.52,128.5,25.916594]
[1720145037518,7.7804,128.53,128.5,25.916594]
[1720145038450,7.781,128.52,128.5,25.916594]
[1720145039421,7.7814,128.51,128.5,25.916594]
[1720145040252,29.3282,128.51,128.5,2.583394]
[1720145040443,29.3282,128.51,128.3,0.8286809]
[1720145040444,100.0,128.46,128.3,0.8286809]
[1720145040656,7.7924,128.33,128.3,0.8286809]
[1720145040936,107.793,128.32,128.3,0.8286809]
[1720145041331,7.7936,128.31,128.3,0.8286809]
[1720145041530,7.7932,128.32,128.3,0.8286809]
[1720145041841,107.7936,128.31,128.3,0.8286809]
[1720145042036,7.7936,128.31,128.3,0.8286809]
[1720145042349,107.7936,128.31,128.3,0.8286809]
[1720145043326,207.7936,128.31,128.3,8.09e-05]
[1720145043541,288.1336,128.31,128.3,8.09e-05]
[1720145045538,107.7936,128.31,128.3,8.09e-05]
[1720145047248,100.0,128.31,128.3,8.09e-05]
[1720145047738,107.7936,128.31,128.3,8.09e-05]
[1720145047941,100.0,128.31,128.3,8.09e-05]
[1720145048244,107.7936,128.31,128.3,8.09e-05]
[1720145049466,108.10677189,128.31,128.3,8.09e-05]
[1720145049661,115.90037189,128.31,128.3,8.09e-05]
[1720145050160,108.10677189,128.31,128.3,8.09e-05]
[1720145050347,115.90037189,128.31,128.3,8.09e-05]
[1720145050751,160.90037189,128.31,128.3,8.09e-05]
[1720145050949,8.10677189,128.31,128.3,8.09e-05]
[1720145051155,100.0,128.32,128.3,8.09e-05]
[1720145051461,108.11138859,128.32,128.3,8.09e-05]
[1720145051645,115.90448859,128.32,128.3,8.09e-05]
[1720145052752,8.11138859,128.32,128.3,8.09e-05]
[1720145052940,115.90438859,128.32,128.3,8.09e-05]
[1720145053261,15.90448859,128.32,128.3,8.09e-05]
[1720145053464,115.90448859,128.32,128.3,8.09e-05]
[1720145053650,108.11138859,128.32,128.3,8.09e-05]
[1720145053856,15.90478859,128.32,128.3,8.09e-05]
[1720145054164,8.11138859,128.32,128.3,8.09e-05]
[1720145054369,100.0,128.37,128.3,8.09e-05]
[1720145054667,100.0,128.39,128.3,8.09e-05]
[1720145054852,100.0,128.34,128.3,8.09e-05]
[1720145055043,7.7936,128.31,128.3,8.09e-05]
[1720145055383,135.34,128.36,128.3,8.09e-05]
[1720145055544,100.0,128.36,128.3,8.09e-05]
[1720145055750,8.10365792,128.35,128.3,8.09e-05]
[1720145056062,15.89485792,128.35,128.3,8.09e-05]
[1720145056673,8.10365792,128.35,128.3,8.09e-05]
[1720145056878,15.89505792,128.35,128.3,8.09e-05]
[1720145058070,100.0,128.34,128.3,8.09e-05]
[1720145058674,107.7921,128.34,128.3,8.09e-05]
[1720145060368,7.7927,128.33,128.3,8.09e-05]
[1720145060672,7.7936,128.31,128.3,8.09e-05]
[1720145061481,107.7932,128.32,128.3,8.09e-05]
[1720145061793,7.7936,128.31,128.3,8.09e-05]
[1720145066088,15.89843637,128.31,128.3,8.09e-05]
[1720145066269,60.89843637,128.31,128.3,8.09e-05]
[1720145066673,15.89843637,128.31,128.3,8.09e-05]
[1720145068090,8.10483637,128.31,128.3,8.09e-05]
[1720145068279,7.7926,128.33,128.3,8.09e-05]
[1720145068983,15.89466405,128.34,128.3,8.09e-05]
[1720145069184,7.7912,128.35,128.3,15.9338809]
[1720145069376,107.7912,128.35,128.3,15.9338809]
[1720145070078,7.7918,128.34,128.3,15.9338809]
[1720145070377,107.7924,128.33,128.3,15.9338809]
[1720145070578,100.0,128.33,128.3,8.09e-05]
[1720145070777,100.0,128.35,128.3,8.09e-05]
[1720145071081,7.7925,128.33,128.3,8.09e-05]
[1720145071274,8.10125629,128.36,128.3,8.09e-05]
[1720145071275,100.0,128.34,128.3,8.09e-05]
[1720145072185,100.0,128.31,128.3,8.09e-05]
[1720145072392,107.7936,128.31,128.3,8.09e-05]
[1720145075105,100.0,128.35,128.3,8.09e-05]
[1720145075287,100.0,128.33,128.3,8.09e-05]
[1720145075817,100.0,128.35,128.3,8.09e-05]
[1720145076100,7.7919,128.34,128.3,8.09e-05]
[1720145076301,7.7916,128.35,128.3,8.09e-05]
[1720145076502,8.10125629,128.36,128.3,8.09e-05]
[1720145076682,15.89185629,128.36,128.3,8.09e-05]
[1720145076992,7.7913,128.35,128.3,8.09e-05]
[1720145077581,7.7919,128.34,128.3,8.09e-05]
[1720145079704,7.7912,128.35,128.3,8.09e-05]
[1720145079885,8.10125629,128.36,128.3,8.09e-05]
[1720145080205,15.89175629,128.36,128.3,8.09e-05]
[1720145081498,15.89175629,128.36,128.31,6.4765]
[1720145081703,7.7912,128.35,128.31,6.4765]
[1720145082997,15.89195629,128.36,128.31,6.4765]
[1720145083200,8.10125629,128.36,128.31,6.4765]
[1720145083515,15.89195629,128.36,128.31,6.4765]
[1720145083710,139.66125629,128.36,128.31,6.4765]
[1720145084203,147.45185629,128.36,128.31,6.4765]
[1720145084400,7.7912,128.35,128.31,6.4765]
[1720145085214,9.321094,128.34,128.31,6.4765]
[1720145085430,9.32065759,128.33,128.31,6.4765]
[1720145085613,9.32065759,128.32,128.3,8.09e-05]
[1720145085817,7.7924,128.33,128.3,8.09e-05]
[1720145086112,9.31357992,128.32,128.3,8.09e-05]
[1720145086410,131.56,128.34,128.3,8.09e-05]
[1720145086598,17.10402618,128.33,128.3,8.09e-05]
[1720145086796,9.31142618,128.32,128.3,8.09e-05]
[1720145087014,31.56,128.34,128.3,8.09e-05]
[1720145087201,9.31128034,128.33,128.3,8.09e-05]
[1720145087405,9.31128034,128.32,128.3,8.09e-05]
[1720145087612,39.3518,128.34,128.3,8.09e-05]
[1720145087907,139.3518,128.34,128.3,8.09e-05]
[1720145088113,9.30786989,128.33,128.3,8.09e-05]
[1720145088314,9.30786989,128.32,128.3,8.09e-05]
[1720145088499,139.3518,128.34,128.3,8.09e-05]
[1720145088698,9.30498003,128.33,128.3,8.09e-05]
[1720145088900,9.30498003,128.32,128.3,8.09e-05]
[1720145089105,7.7925,128.33,128.3,8.09e-05]
[1720145089316,9.30317171,128.32,128.3,8.09e-05]
[1720145089514,7.7925,128.33,128.3,8.09e-05]
[1720145089704,9.30283562,128.32,128.3,8.09e-05]
[1720145089909,131.56,128.34,128.3,8.09e-05]
[1720145090105,9.30062801,128.33,128.3,8.09e-05]
[1720145090301,9.30062801,128.32,128.3,8.09e-05]
[1720145090633,131.56,128.34,128.3,8.09e-05]
[1720145090927,9.30334869,128.33,128.3,8.09e-05]